Cogmind - Beta 14 @@@ ROGUE MODE // 2025.04.30 @ 13:18:29 Player: celerysam Result: Destroyed by 34-OTR(R) with Subdweller Shrapnel Launcher Performance ------------- Evolutions (0) 0 Regions Visited (2) 400 Robots Destroyed (16) 80 Value Destroyed (293) 293 Prototype IDs (11) 220 Alien Tech Used (0) 0 Bonus (0) 0 TOTAL SCORE: 993 Bonus ------- None Cogmind --------- Core Integrity 0/250 Matter 206/300 Energy 247/250 System Corruption 1% Temperature Cool (0) Movement Rolling (95) Location -10/Subcaves Parts ------- > --- POWER (1) -------- Ion Engine > --- PROPULSION (2) --- Wheel Subdweller Monowheel > --- UTILITY (2) ------ Small Storage Unit Transport Network Coupler > --- WEAPON (2) ------- Medium Laser Battle Cannon > --- INVENTORY (8) ---- Light Ion Engine Arachnoskeleton Signal Interpreter ECM Suite Propulsion Shielding Light Assault Rifle Peak State ------------ > --- POWER ------------ Ion Engine > --- PROPULSION ------- Wheel Subdweller Monowheel > --- UTILITY ---------- Small Storage Unit Transport Network Coupler > --- WEAPON ----------- Medium Laser Battle Cannon > --- INVENTORY -------- Light Ion Engine Arachnoskeleton Signal Interpreter ECM Suite Propulsion Shielding Light Assault Rifle [Rating: 11] Favorites ----------- Power Ion Engine Engine Ion Engine Propulsion Wheel Wheel Wheel Utility Small Storage Unit Storage Small Storage Unit Processor Transport Network Coupler Weapon Medium Laser Energy Gun Medium Laser Ballistic Gun Light Assault Rifle Ballistic Cannon Battle Cannon Build | -11 -10 -10 ------- Run | Yrd Mat Sub Slots Evolved . | . . . Power . | . . . Propulsion . | . . . Utility . | . . . Weapon . | . . . Parts Attached 14 | 6 6 2 Power 2 | 1 1 . Engine 2 | 1 1 . Core . | . . . Reactor . | . . . Propulsion 6 | 2 3 1 Treads . | . . . Leg . | . . . Wheel 6 | 2 3 1 Hover . | . . . Flight . | . . . Utility 2 | 1 1 . Device . | . . . Storage 1 | 1 . . Processor 1 | . 1 . Hackware . | . . . Protection . | . . . Artifact . | . . . Weapon 4 | 2 1 1 Energy Gun 2 | 2 . . Energy Cannon . | . . . Ballistic Gun 1 | . 1 . Ballistic Cannon 1 | . . 1 Launcher . | . . . Special Weapon . | . . . Impact Weapon . | . . . Slashing Weapon . | . . . Piercing Weapon . | . . . Special Melee Weapon . | . . . Unidentified Prototypes . | . . . Parts Lost 2 | . 2 . Power . | . . . Propulsion 1 | . 1 . Utility . | . . . Weapon 1 | . 1 . Highest Loss Streak 1 | . 1 . To Critical Strikes . | . . . Average Slot Usage (%) 98 | . 98 100 Engine 14 | . 14 14 Wheel 27 | . 27 28 Storage 14 | . 14 14 Processor 13 | . 13 14 Energy Gun 23 | . 25 14 Ballistic Gun 2 | . 2 4 Ballistic Cannon 1 | . . 9 Peak Build Rating 11 | 6 7 11 Average Rating 7 | 4 6 8 On Entrance 4 | . 6 7 Naked Turns . | . . . Heaviest Build 15 | 14 14 15 Greatest Support 30 | 20 20 30 Greatest Overweight (x) 1 | . 1 . Average Overweight (x) . | . . . Largest Inventory Capacity 8 | 8 8 8 Average Capacity 7 | 7 8 8 Most Carried 8 | 7 8 8 Average Carried 7 | 3 7 7 Final Capacity 8 | 8 8 8 Final Carried 8 | 6 6 8 Class Distribution -------------------- 100% | Mutant Dominant Class ---------------- Mutant | -10/Materials Mutant | -10/Subcaves Resources | -11 -10 -10 ----------- Run | Yrd Mat Sub Matter Collected 326 | 204 122 . Remotely . | . . . Salvage Created 432 | . 432 . Parts 27 | . 27 . Haulers Intercepted 1 | . 1 . Recyclers Shooed . | . . . Parts Field Recycled . | . . . Retrieved Matter . | . . . Parts Self-Destructed . | . . . Prevented . | . . . Kills | -11 -10 -10 ------- Run | Yrd Mat Sub Combat Hostiles Destroyed 13 | . 13 . Guns 13 | . 13 . Classes Destroyed 4 | . 4 . Hauler 1 | . 1 . Watcher 2 | . 2 . Swarmer 9 | . 9 . Grunt 4 | . 4 . Best Kill Streak 6 | . 6 . Combat Bots Only 6 | . 6 . Max Kills in Single Turn 2 | . 2 . Gunslinging 1 | . 1 . Exploded . | . . . Melee . | . . . Uniques/NPCs Destroyed . | . . . Combat | -11 -10 -10 -------- Run | Yrd Mat Sub Hostile Shots Fired 66 | . 64 2 Missed 21 | . 21 . Damage Taken 645 | . 488 157 Core 267 | . 124 143 Absorbed by Shields . | . . . Core Remaining (%) 100 | 100 . . Volleys Fired 53 | . 42 11 Largest 2 | . 2 2 Hottest 90 | . 90 89 Shots Fired 105 | . 83 22 Gun 97 | . 83 14 Cannon 8 | . . 8 Launcher . | . . . Special . | . . . Kinetic 23 | . 12 11 Thermal 54 | . 43 11 Explosive . | . . . Electromagnetic 28 | . 28 . Robot Hit Streak 7 | . 7 4 Robot Miss Streak 4 | . 4 1 Penetration Max . | . . . Secondary Targets 3 | . 3 . Max Gunslinging Chain 1 | . 1 . Shots Hit Robots 46 | . 45 1 Core Hits 21 | . 21 . Critical Kills . | . . . Critical Parts Destroyed . | . . . Critical Strikes 3 | . 3 . Burn 3 | . 3 . Melee Attacks . | . . . Impact . | . . . Slashing . | . . . Piercing . | . . . Sneak Attacks . | . . . Combat Hostiles . | . . . Follow-up Attacks . | . . . Damage Inflicted 600 | . 588 12 Guns 526 | . 514 12 Cannons . | . . . Explosions 62 | . 62 . Melee . | . . . Ramming 12 | . 12 . Kinetic 57 | . 57 . Thermal 388 | . 376 12 Explosive . | . . . Electromagnetic 143 | . 143 . Impact . | . . . Slashing . | . . . Piercing . | . . . Highest Corruption 1 | . 1 1 Average Corruption 1 | . 1 1 Corruption Purged . | . . . Corruption Blocked . | . . . Effects 14 | . 12 2 Message Errors 3 | . 3 . Matter Fused 5 | . 3 2 Heat Flow Errors 2 | . 2 . Energy Discharges 2 | . 2 . Data Loss (minor) 1 | . 1 . Misfires 1 | . 1 . Overload Shots . | . . . Overflow Damage . | . . . Projectiles . | . . . Explosions . | . . . Melee . | . . . Knockbacks . | . . . Impact . | . . . Kinetic . | . . . Secondary . | . . . Self-Inflicted Damage 41 | . 41 . Shots 1 | . 1 . Rammed 1 | . 1 . Targets Rammed 1 | . 1 . Kicked . | . . . Crushed . | . . . Highest Temperature 363 | . 363 . Average Temperature 97 | . 97 . Received Heat Transfer 147 | . 147 . Effects 2 | . 2 . Shutdowns 1 | . 1 . Interference 1 | . 1 . Siege Activations . | . . . Robots Corrupted . | . . . Combat Hostiles . | . . . Parts Fried . | . . . Impact Corruptions . | . . . Robots Melted . | . . . Combat Hostiles . | . . . Parts Melted 4 | . 4 . Heat Transferred 1284 | . 1247 37 Parts Sabotaged . | . . . Parts Stolen . | . . . Parts Stripped . | . . . Power Chain Reactions 1 | . 1 . Alert | -11 -10 -10 ------- Run | Yrd Mat Sub Peak Influence 337 | . 337 . Initial . | . . . Average 124 | . 130 . Maximum Alert Level 1 | . 1 . Low Security (%) 76 | 100 75 . Level 1 23 | . 24 . Level 2 . | . . . Level 3 . | . . . Level 4 . | . . . Level 5 . | . . . High Security . | . . . Max Security . | . . . Squads Dispatched 2 | . 2 . Investigation 2 | . 2 . Extermination . | . . . Reinforcement . | . . . Assault . | . . . Garrison . | . . . Intercept . | . . . Searches Triggered . | . . . Construction Impeded . | . . . Haulers Reinforced . | . . . Active Scanning Responses . | . . . Cargo Convoy Interrupts . | . . . Stealth | -11 -10 -10 --------- Run | Yrd Mat Sub Distress Signals . | . . . Communications Jammed . | . . . Distress Signals . | . . . Times Spotted 23 | . 22 1 Peak Tracking Total 6 | . 6 1 Tactical Retreats 2 | . 2 . Traps | -11 -10 -10 ------- Run | Yrd Mat Sub Traps Triggered 4 | . 3 1 Indirectly . | . . . Trap Hack Attempts . | . . . Triggered . | . . . Disarmed . | . . . Reprogrammed . | . . . Reused . | . . . Traps Extracted . | . . . Installed . | . . . Triggered . | . . . Machines | -11 -10 -10 ---------- Run | Yrd Mat Sub Machines Disabled 3 | . 2 1 Max in Single Turn 1 | . 1 1 Machines Repaired . | . . . Machines Dismantled . | . . . Machines Sabotaged . | . . . Overloaded Fab Kills . | . . . Hacking | -11 -10 -10 --------- Run | Yrd Mat Sub Machines Accessed 4 | . 3 1 Terminals 3 | . 3 . Fabricators . | . . . Repair Stations . | . . . Recycling Units . | . . . Scanalyzers . | . . . Garrison Access . | . . . Total Hacks 15 | . 6 9 Successful 10 | . 1 9 Failed 5 | . 5 . Catastrophic . | . . . Database Lockouts . | . . . Manual 4 | . 4 . Terminals 6 | . 6 . Fabricators . | . . . Repair Stations . | . . . Recycling Units . | . . . Scanalyzers . | . . . Garrison Access . | . . . Terminal Hacks 9 | . . 9 Record 8 | . . 8 Derelict Proto ID Bank 1 | . . 1 Fabricator Hacks . | . . . Repair Station Hacks . | . . . Recycling Unit Hacks . | . . . Scanalyzer . | . . . Garrison Access Hacks . | . . . Unauthorized Hacks 1 | . 1 . Terminals 1 | . 1 . Botnet 1 | . 1 . Fabricators . | . . . Repair Stations . | . . . Recycling Units . | . . . Scanalyzers . | . . . Garrison Access . | . . . Data Cores Recovered . | . . . Used . | . . . Hacking Detections 2 | . 2 . Full Trace Events . | . . . Feedback Events . | . . . Feedback Blocked . | . . . Robot Schematics Acquired . | . . . Robots Built . | . . . Authchips . | . . . Time . | . . . Total Robot Build Rating . | . . . Part Schematics Acquired . | . . . Parts Built . | . . . Authchips . | . . . Time . | . . . Total Part Build Rating . | . . . Parts Repaired . | . . . Time . | . . . Parts Recycled . | . . . Recycled Matter . | . . . Retrieved Matter . | . . . Retrieved Components . | . . . Parts Scanalyzed . | . . . Part Schematics Acquired . | . . . Parts Damaged . | . . . Bothacking | -11 -10 -10 ------------ Run | Yrd Mat Sub Used RIF Installer . | . . . Robots Hacked . | . . . Non-combat . | . . . Combat . | . . . Robot Hacks Applied . | . . . Relay Couplers Released . | . . . Fabnet Peak Effective % . | . . . Robots Rewired . | . . . Allies Hacked . | . . . Hacks Repelled . | . . . Allies | -11 -10 -10 -------- Run | Yrd Mat Sub Total Allies . | . . . Largest Group . | . . . Highest-Rated Group . | . . . Highest-Rated Ally . | . . . Total Orders . | . . . Ally Attacks . | . . . Total Damage . | . . . Kills . | . . . Allies Corrupted . | . . . Allies Melted . | . . . Intel | -11 -10 -10 ------- Run | Yrd Mat Sub Robot Analysis Total . | . . . Derelict Logs Recovered . | . . . Drone Launches . | . . . Drone Recoveries . | . . . Exploration | -11 -10 -10 ------------- Run | Yrd Mat Sub Turns Passed 1573 | 58 1244 271 Spaces Moved 1340 | 52 1005 283 Core 3 | 3 . . Treads . | . . . Legs . | . . . Wheels 1337 | 49 1005 283 Hover . | . . . Flight . | . . . Fastest Speed 50 | 50 80 80 Average Speed 80 | 78 81 80 Slowest Speed 95 | 80 95 95 Overloaded Moves . | . . . Propulsion Burnouts . | . . . Robots Hopped . | . . . Cave-ins Triggered . | . . . Exploration Rate (%) 41 | 3 99 21 Regions Visited 2 Branch Regions 1 Pre-discovered Areas . | . . . Known Exits Taken . | . . . Unknown Exits Taken 2 | 1 1 . Scrap Searched . | . . . Spaces Dug . | . . . Terrain Destroyed 4 | . 4 . Melee . | . . . Projectile . | . . . AOE 4 | . 4 . Terrain Rammed . | . . . Walls Destroyed . | . . . Machines Disabled . | . . . Actions | -11 -10 -10 --------- Run | Yrd Mat Sub Total 1727 | 69 1354 304 Wait 296 | . 293 3 Move 1338 | 51 1004 283 Hop . | . . . Pick Up 18 | 12 4 2 Fast Attach 1 | . 1 . Attach 8 | 6 2 . Detach . | . . . Swap 5 | . 3 2 Drop 7 | . 4 3 Fire 53 | . 42 11 Melee . | . . . Ram 1 | . 1 . Kick . | . . . Crush . | . . . Escape Stasis . | . . . Rewire . | . . . Trap . | . . . Miscellaneous . | . . . Route ------- -11/Scrapyard -10/Materials (discovered 6 exits: [*Mat x3] / [*Min x2] / *Sub) -10/Subcaves History --------- Turn | Location | Event 28 | -11/Scrapyard | Discovered new exit (range 16) 59 | -11/Scrapyard | Entered Materials 173 | -10/Materials | Discovered new exit (range 16) 204 | -10/Materials | Discovered new exit (range 15) 316 | -10/Materials | Build established: Mutant 384 | -10/Materials | Discovered new exit (range 8) 452 | -10/Materials | Discovered new exit (range 7) 769 | -10/Materials | Discovered new exit (range 9) 1289 | -10/Materials | Discovered new exit (range 13) 1303 | -10/Materials | Entered Subcaves 1305 | -10/Subcaves | Shifting Twisted Machinery released Battle Cannon 1370 | -10/Subcaves | Core integrity fell below 50% 1403 | -10/Subcaves | Visited 4L-MR0's lab 1414 | -10/Subcaves | Found Arachnoskeleton 1549 | -10/Subcaves | Shifting Twisted Machinery released Sub. Monowheel 1563 | -10/Subcaves | A swath of the cavern ceiling suddenly collapsed 1573 | -10/Subcaves | Disturbed a concealed Subdweller 1574 | -10/Subcaves | Destroyed by 34-OTR(R) with Subdweller Shrapnel Launcher Last Messages --------------- way I'm not culpable for whatever they would've done with it. If we're lucky even some of the others got blasted, too. >>Record "Infernogeddon Engine" There was a rumor. A rumor but no details. I can't build something based on a vague rumor about ending the world in a hellish blaze at the flip of a switch. Also why would anyone want that. 01408_ Testing Chamber breached. 01413_ Dropped Lgt. Treads. 01414_ Acquired Arachnoskeleton. 01522_ System corrupted: Matter fused (-6). Sub. Monowheel falls loose from the Twisted Machinery. 01555_ Dropped Wheel. A swath of the cavern ceiling suddenly collapses. 01573_ 34-OTR(R) angrily emerges from the Twisted Machinery. Map ----- +----------------------------------------------------+ | ???????????????# #?????????????? | | ??????????????## #?????????????? | | ??????????????# ##?????????????? | | ??????????????## ##??????? ??????? | | ??????????????# ###????? #?????#? | | ??????????????# ##???? ##??? ## | | ??????????????# #???? ##? | | ??????????????# #???? ## | | ??????????????## ##### # | | ???????????????# ## #### #?? | | ??????????????## ?##???# #??? | | ??????????????# ??????## ## #??? | | ??????????????# ???###?## #?????? | | ??????????????## ??## #??# ##????? | | ??????????????## ### #### ##???? | | ??????????????# # ## ##??? | | ???????????????# # #??? | | ???????????????# ##??? | | ???????????????# #???? | | ???????????????#### #???? | | ?????????????????# ##??? | | ????????????######## ; "## #??? | | ???????????##;;;;;;# #"" ## "="" #??? | | ????????##$#;; ;;#"#### """ #?? | | ????????# ;$; ;##""""## "" " #?? | | ?????????# R @ #""#""#### ## #?? | | ????????#$& ;; ####"""#??# #?###?? | | ????????##$#; #??#####??" #?????? | | ???????????##;; #???# #??# #?????? | | ????????????###; #??? #??# ?????? | | ???????????????# ##???"""#?? """?????? | | ???????????????# #????" ""??""""?????? | | ???????????????# ????""""??? ??????? | | ???????????????## ##??????????????????? | | ????????????????###???????????????????? | | ??????????????????????????????????????? | | ??????????????????????????????????????? | | ??????????????????????????????????????? | | ??????????????????????????????????????? | | ??????????????????????????????????????? | | ??????????????????????????????????????? | | ??????????????????????????????????????? | | ??????????????????????????????????????? | | ??????????????????????????????????????? | | ??????????????????????????????????????? | | ??????????????????????????????????????? | | ??????????????????????????????????????? | | ??????????????????????????????????????? | | ??????????????????????????????????????? | | ??????????????????????????????????????? | +----------------------------------------------------+ Best States ------------- Heat Dissipation 25 Energy Generation 10 Energy Capacity 250 Matter Stores 300 Matter Capacity 300 Sight Range 16 Terrain Scan Density 10 Evasion (%) 44 Item Schematics ----------------- None Robot Schematics ------------------ None Fabricated ------------ Nothing Alien Tech Used ----------------- None Achievements -------------- None Challenges ------------ None Game ------ Seed AntimissileSpliceAirjet Manual? 0 Play Time 00:15:43 Cumulative 230.7 hours Start 2025.04.30 @ 12:54:49 End 2025.04.30 @ 13:18:29 Sessions 1 Manual Loads 0 Difficulty Rogue Special Mode None Game No. 335 Rogue 335 Adventurer 0 Explorer 0 Win Type - Total 1 Types 1/0/0/0/0/0/0/0/0 Lore% 37 Gallery% 64 Achievement% 43 Wizard Run 0 Options --------- Layout 1 ASCII 0 Keyboard 0 Movement Mouse Keybinds 0 Fullscreen 2 Font 24/Smallcaps Map View 50x35 Zoom Use 0% Tactical HUD 1 Map Filters NONE Filters NONE Steam 1 RUN: 84026048-df05-42cb-b295-a571e6c8f704